Cogmind - Beta 17 @@@ ROGUE MODE // 2026.08.06 @ 15:22:29 Player: Floof Enjoyer Result: Self-destructed Performance ------------- Evolutions (1) 500 Regions Visited (2) 400 Robots Destroyed (14) 70 Value Destroyed (381) 381 Prototype IDs (0) 0 Alien Tech Used (0) 0 Bonus (0) 0 TOTAL SCORE: 1351 Bonus ------- None Cogmind --------- Core Integrity 230/400 Matter 285/300 Energy 59/250 System Corruption 0% Temperature Cool (9) Movement Rolling (90) Location -9/Materials Parts ------- > --- POWER (1) -------- Ion Engine > --- PROPULSION (4) --- Armored Wheel Armored Wheel > --- UTILITY (2) ------ Terrain Scanner Terrain Scan Processor > --- WEAPON (2) ------- Small Laser > --- INVENTORY (5) ---- Small Storage Unit Terrain Scanner Shield Generator Peak State ------------ > --- POWER ------------ Light Nuclear Core > --- PROPULSION ------- Compact Wheel Armored Wheel Armored Wheel Armored Wheel > --- UTILITY ---------- Terrain Scanner Terrain Scan Processor > --- WEAPON ----------- Heavy EM Pulse Gun Light EM Pulse Cannon > --- INVENTORY -------- Ion Engine Ion Engine Terrain Scanner Small Laser Small Laser [Rating: 17] Favorites ----------- Power Light Nuclear Core Engine Ion Engine Power Core Light Nuclear Core Propulsion Armored Wheel Leg Aluminum Leg Wheel Armored Wheel Utility Terrain Scan Processor Device ECM Suite Storage Small Storage Unit Processor Terrain Scan Processor Weapon Light EM Pulse Cannon Energy Gun Heavy EM Pulse Gun Energy Cannon Light EM Pulse Cannon Ballistic Gun Light Assault Rifle Build | -11 -10 -9 ------- Run | Yrd Mat Mat Slots Evolved 2 | . . 2 Power . | . . . Propulsion 2 | . . 2 Utility . | . . . Weapon . | . . . Parts Attached 28 | 7 9 12 Power 5 | 1 3 1 Engine 4 | 1 3 . Core 1 | . . 1 Reactor . | . . . Propulsion 8 | 2 2 4 Treads . | . . . Leg 2 | . 2 . Wheel 6 | 2 . 4 Hover . | . . . Flight . | . . . Utility 5 | 2 1 2 Device 3 | 1 . 2 Storage 1 | 1 . . Processor 1 | . 1 . Hackware . | . . . Protection . | . . . Artifact . | . . . Weapon 10 | 2 3 5 Energy Gun 6 | 1 1 4 Energy Cannon 3 | . 2 1 Ballistic Gun 1 | 1 . . Ballistic Cannon . | . . . Launcher . | . . . Special Weapon . | . . . Impact Weapon . | . . . Slashing Weapon . | . . . Piercing Weapon . | . . . Special Melee Weapon . | . . . Unidentified Prototypes . | . . . Parts Lost 15 | . 9 6 Power 3 | . 2 1 Propulsion 4 | . 2 2 Utility 1 | . 1 . Weapon 7 | . 4 3 Highest Loss Streak 9 | . 9 4 To Critical Strikes . | . . . Average Backups 2 | 1 2 3 Power 1 | . 1 1 Propulsion . | . . . Utility . | . . . Weapon . | . . . Tool/Special . | . . . Unused Backups 4 | . . 4 Power . | . . . Propulsion . | . . . Utility 2 | . . 2 Weapon 2 | . . 2 Tool/Special . | . . . Average Slot Usage (%) 77 | . 68 81 Engine 5 | . 12 1 Core 5 | . . 8 Leg 8 | . 7 9 Wheel 16 | . 10 19 Device 8 | . 5 9 Storage 1 | . 2 . Processor 10 | . 10 11 Energy Gun 8 | . 5 10 Energy Cannon 9 | . 8 11 Ballistic Gun 2 | . 5 . Peak Build Rating 17 | 9 10 17 Average Rating 10 | 5 6 13 On Entrance 5 | . 9 7 Avg Prop Armor Cover (%) . | . . . Naked Turns . | . . . Heaviest Build 14 | 11 11 14 Greatest Support 52 | 32 32 52 Greatest Overweight (x) 2 | . 2 1 Average Overweight (x) . | . . . Largest Inventory Capacity 8 | 8 8 5 Average Capacity 5 | 6 5 5 Most Carried 5 | 5 4 5 Average Carried 2 | 1 2 3 Final Capacity 8 | 8 5 5 Final Carried 4 | 2 4 3 Class Distribution -------------------- 100% | Mutant Dominant Class ---------------- Mutant | -10/Materials Mutant | -9/Materials Resources | -11 -10 -9 ----------- Run | Yrd Mat Mat Matter Collected 428 | 156 174 98 Remotely . | . . . Salvage Created 671 | 13 344 314 Parts 35 | 3 17 15 Haulers Intercepted . | . . . Recyclers Shooed 2 | . 1 1 Parts Field Recycled . | . . . Retrieved Matter . | . . . Parts Self-Destructed . | . . . Prevented . | . . . Parts Restored . | . . . Kills | -11 -10 -9 ------- Run | Yrd Mat Mat Combat Hostiles Destroyed 9 | . 5 4 Guns 3 | . 2 1 Cannons 5 | . 3 2 Classes Destroyed 6 | 1 3 2 Worker 1 | . 1 . Tunneler 1 | 1 . . Recycler 2 | . 1 1 Watcher 1 | . . 1 Grunt 7 | . 5 2 Duelist 2 | . . 2 Best Kill Streak 7 | 1 7 3 Combat Bots Only 5 | . 5 2 Max Kills in Single Turn 1 | 1 1 1 Gunslinging . | . . . Exploded . | . . . Melee . | . . . Uniques/NPCs Destroyed . | . . . Combat | -11 -10 -9 -------- Run | Yrd Mat Mat Hostile Shots Fired 144 | . 80 64 Missed 41 | . 18 23 Hits 103 | . 62 41 Melee 5 | . . 5 Projectile 98 | . 62 36 Critical Strikes 1 | . . 1 Damage Taken 1408 | . 782 626 Core 396 | . 226 170 Absorbed by Shields . | . . . Core Remaining (%) 54 | 100 9 . Volleys Fired 45 | 2 23 20 Largest 2 | 2 2 2 Hottest 101 | 60 60 101 Shots Fired 75 | 4 34 37 Gun 50 | 4 25 21 Cannon 25 | . 9 16 Launcher . | . . . Special . | . . . Kinetic 15 | 2 13 . Thermal 14 | 2 10 2 Explosive . | . . . Electromagnetic 46 | . 11 35 Robot Hit Streak 17 | 1 17 9 Robot Miss Streak 2 | . 2 2 Penetration Max . | . . . Secondary Targets 1 | . 1 . Max Gunslinging Chain 1 | . 1 . Shots Hit Robots 54 | 1 30 23 Core Hits 21 | 1 13 7 Critical Kills . | . . . Critical Parts Destroyed . | . . . Critical Strikes 4 | . 1 3 Corrupt 4 | . 1 3 Melee Attacks . | . . . Impact . | . . . Slashing . | . . . Piercing . | . . . Sneak Attacks . | . . . Combat Hostiles . | . . . Follow-up Attacks . | . . . Damage Inflicted 895 | 22 443 430 Guns 410 | 22 217 171 Cannons 469 | . 226 243 Explosions . | . . . Melee . | . . . Ramming 16 | . . 16 Kinetic 104 | . 104 . Thermal 120 | 22 88 10 Explosive . | . . . Electromagnetic 655 | . 251 404 Impact . | . . . Slashing . | . . . Piercing . | . . . Highest Corruption . | . . . Average Corruption . | . . . Corruption Purged . | . . . Corruption Blocked . | . . . Overload Shots . | . . . Overflow Damage 33 | . 17 16 Projectiles 33 | . 17 16 Explosions . | . . . Melee . | . . . Knockbacks . | . . . Impact . | . . . Kinetic . | . . . Secondary . | . . . Self-Inflicted Damage 8 | . . 8 Shots . | . . . Rammed 1 | . . 1 Targets Rammed 1 | . . 1 Kicked . | . . . Crushed . | . . . Highest Temperature 177 | 20 123 177 Average Temperature 60 | 15 63 59 Received Heat Transfer 600 | . 399 201 Siege Activations . | . . . Martial Activations . | . . . Shielding Activations . | . . . Robots Disrupted . | . . . Combat Hostiles . | . . . Robots Corrupted 1 | . . 1 Combat Hostiles 1 | . . 1 Parts Fried 3 | . . 3 Impact Corruptions . | . . . Robots Melted . | . . . Combat Hostiles . | . . . Parts Melted . | . . . Heat Transferred 275 | 50 200 25 Parts Sabotaged . | . . . Parts Stolen . | . . . Parts Stripped . | . . . Power Chain Reactions . | . . . Alert | -11 -10 -9 ------- Run | Yrd Mat Mat Maximum Alert Level . | . . . Low Security (%) 100 | 100 100 100 Level 1 . | . . . Level 2 . | . . . Level 3 . | . . . Level 4 . | . . . Level 5 . | . . . High Security . | . . . Max Security . | . . . Peak Influence 75 | 5 45 75 Initial 3 | . . 3 Average 12 | . 17 12 Influence Increases 314 | 5 145 164 Destroy 0b10 Robot/C 180 | . 100 80 Destroy 0b10 Robot/NC 25 | 5 10 10 Destroy Leader 42 | . 20 22 Successful Hack 7 | . . 7 Partial Spotted 15 | . 15 . Lose Combat Pursuer 45 | . . 45 Influence Decreases 269 | 5 135 129 Entered New Map 7 | . . 7 Time Decay 172 | 5 80 87 Lost Part 90 | . 55 35 Squads Dispatched 2 | . 1 1 Investigation 1 | . . 1 Extermination . | . . . Reinforcement 1 | . 1 . Assault . | . . . Garrison . | . . . Intercept . | . . . Searches Triggered . | . . . Construction Impeded . | . . . Haulers Reinforced . | . . . Active Scanning Responses . | . . . Cargo Convoy Interrupts . | . . . Stealth | -11 -10 -9 --------- Run | Yrd Mat Mat Distress Signals 2 | . . 2 Communications Jammed . | . . . Distress Signals . | . . . Times Spotted 27 | . 11 16 Peak Tracking Total 8 | . 8 8 Tactical Retreats 1 | . . 1 Traps | -11 -10 -9 ------- Run | Yrd Mat Mat Traps Triggered 2 | . 1 1 Indirectly . | . . . Trap Hack Attempts . | . . . Triggered . | . . . Disarmed . | . . . Reprogrammed . | . . . Reused . | . . . Traps Extracted . | . . . Installed . | . . . Triggered . | . . . Machines | -11 -10 -9 ---------- Run | Yrd Mat Mat Machines Disabled . | . . . Max in Single Turn . | . . . Machines Repaired . | . . . Machines Dismantled . | . . . Machines Sabotaged . | . . . Overloaded Fab Kills . | . . . Hacking | -11 -10 -9 --------- Run | Yrd Mat Mat Machines Accessed 2 | . . 2 Terminals 2 | . . 2 Fabricators . | . . . Repair Stations . | . . . Recycling Units . | . . . Scanalyzers . | . . . Garrison Access . | . . . Total Hacks 2 | . . 2 Successful 2 | . . 2 Failed . | . . . Catastrophic . | . . . Database Lockouts . | . . . Manual . | . . . Terminals 2 | . . 2 Fabricators . | . . . Repair Stations . | . . . Recycling Units . | . . . Scanalyzers . | . . . Garrison Access . | . . . Terminal Hacks 2 | . . 2 Surveillance Status 1 | . . 1 Zone Layout 1 | . . 1 Fabricator Hacks . | . . . Repair Station Hacks . | . . . Recycling Unit Hacks . | . . . Scanalyzer . | . . . Garrison Access Hacks . | . . . Unauthorized Hacks . | . . . Terminals . | . . . Fabricators . | . . . Repair Stations . | . . . Recycling Units . | . . . Scanalyzers . | . . . Garrison Access . | . . . Data Cores Recovered . | . . . Used . | . . . Hacking Detections . | . . . Full Trace Events . | . . . Feedback Events . | . . . Feedback Blocked . | . . . Robot Schematics Acquired . | . . . Robots Built . | . . . Authchips . | . . . Time . | . . . Total Robot Build Rating . | . . . Part Schematics Acquired . | . . . Parts Built . | . . . Authchips . | . . . Time . | . . . Total Part Build Rating . | . . . Part Studies Acquired . | . . . Parts Repaired . | . . . Time . | . . . Parts Recycled . | . . . Recycled Matter . | . . . Retrieved Matter . | . . . Retrieved Components . | . . . Parts Scanalyzed . | . . . Part Schematics Acquired . | . . . Parts Damaged . | . . . Bothacking | -11 -10 -9 ------------ Run | Yrd Mat Mat Used RIF Installer . | . . . Robots Hacked . | . . . Non-combat . | . . . Combat . | . . . Robot Hacks Applied . | . . . Relay Couplers Released . | . . . Fabnet Peak Effective % . | . . . Robots Rewired . | . . . Allies Hacked . | . . . Hacks Repelled . | . . . Allies | -11 -10 -9 -------- Run | Yrd Mat Mat Total Allies . | . . . Largest Group . | . . . Highest-Rated Group . | . . . Highest-Rated Ally . | . . . Total Orders . | . . . Ally Attacks . | . . . Total Damage . | . . . Kills . | . . . Allies Corrupted . | . . . Allies Melted . | . . . Intel | -11 -10 -9 ------- Run | Yrd Mat Mat Active Infowar (turns) 374 | 22 63 289 Terrain 213 | 22 63 128 ECM 161 | . . 161 Robot Analysis Total . | . . . Derelict Logs Recovered . | . . . Drone Launches . | . . . Drone Recoveries . | . . . Exploration | -11 -10 -9 ------------- Run | Yrd Mat Mat Turns Passed 582 | 68 185 329 Spaces Moved 376 | 47 97 232 Core 19 | 1 18 . Treads . | . . . Legs 146 | . 41 105 Wheels 211 | 46 38 127 Hover . | . . . Flight . | . . . Fastest Speed 50 | 50 50 90 Average Speed 106 | 98 115 104 Slowest Speed 150 | 100 150 120 Overloaded Moves . | . . . Propulsion Burnouts . | . . . Robots Hopped . | . . . Potential Cave-ins . | . . . Cave-ins Triggered . | . . . Exploration Rate (%) 16 | 3 21 25 Regions Visited 2 Branch Regions . Pre-discovered Areas . | . . . Known Exits Taken . | . . . Unknown Exits Taken 2 | 1 1 . Scrap Searched . | . . . Spaces Dug . | . . . Terrain Destroyed . | . . . Melee . | . . . Projectile . | . . . AOE . | . . . Terrain Rammed . | . . . Walls Destroyed . | . . . Machines Disabled . | . . . Actions | -11 -10 -9 --------- Run | Yrd Mat Mat Total 487 | 64 139 284 Wait . | . . . Move 374 | 46 96 232 Hop . | . . . Pick Up 30 | 9 10 11 Fast Attach 1 | . . 1 Attach 23 | 7 8 8 Detach . | . . . Swap 5 | . 1 4 Drop 8 | . 1 7 Fire 45 | 2 23 20 Melee . | . . . Ram 1 | . . 1 Kick . | . . . Crush . | . . . Escape Stasis . | . . . Rewire . | . . . Trap . | . . . Miscellaneous . | . . . Route ------- -11/Scrapyard -10/Materials (discovered 2 exits: *Mat / [Min]) -9/Materials History --------- Turn | Location | Event 2 | -11/Scrapyard | Met Revision 17 7 | -11/Scrapyard | Discovered new exit (range 15) 69 | -11/Scrapyard | Entered Materials 120 | -10/Materials | Discovered new exit (range 14) 147 | -10/Materials | Core integrity fell below 50% 167 | -10/Materials | Core integrity fell below 20% 193 | -10/Materials | Lost 9 parts (2p2n1u4w) 251 | -10/Materials | Discovered new exit (range 3) 254 | -10/Materials | Entered another Materials area 254 | -9/Materials | Evolved 2 slots: Propulsion x2 309 | -9/Materials | Build established: Mutant 580 | -9/Materials | Lost 4 parts (1p1n2w) 583 | -9/Materials | Self-destructed Last Messages --------------- Dropped Ion Engine. Acquired Hvy. EM Pulse Gun. Acquired 10 matter. U-05 Engineer completes Atomic Centrifuge. R-06 Scavenger collects Corrupted Katana. Acquired Shield Generator. W-16 Scout sends out distress signal. Destroyed Hover Unit. Com. Wheel destroyed. Lgt. Nuclear Core destroyed. U-05 Engineer builds a Door. Hvy. EM Pulse Gun destroyed. Lgt. EM Pulse Cannon destroyed. L-31 Rogue system terminally corrupted. Melee Analysis Suite fried. Katana fried. Imp. Ion Engine fried. Acquired Sml. Storage Unit. Hvy. EM Pulse Gun destroyed. Arm. Wheel destroyed. Map ----- +----------------------------------------------------+ | ????????????????????????????????? # = + #== | | ?????????????????????????????? ?/ + # # | | ?????????????????????????????? ?# # """ # ##### | | ???????????????????????????? ???# # R" # #???? | | ????????????????????????????? ?# #[ """ # #???? | | ????????????????????????#?????? # # # #???? | | ?????????????????????????????#?## ######## #?#?? | | ????????????????????????#???????# ######?# ##??? | | ?????????????????????????#?????## ########/##??? | | ?????????????????????? ?????#???# # #??? | | ??????????????????????????####### # #??? | | ????????????????????????#### # #??? | | ???????????????????????? # #??? | | ?????????????????????????#??? # #??? | | ??????????????????#?#########+### # """"" #??? | | ????????????????????? # # """"" #??? | | ????????????????#?#???""" """ + + """"" #??? | | ????????????????????? """ """ # ###########??? | | ?????????????#??????? ?"" """ # #???? ???????? | | ??????????????#????#? ?"" """ # ##? ?????"??#? | | ?????????????#??#???? ?"" """ # #???? ? """??? | | ??????????????????### ? # #??? ????????? | | ???????????? ????#????########### ##?? ? ?? ? ? | | ?????????????????#????# ## ### ??? ?"???? | | ???????????????? ????## """ # #????? "?"??? | | ?????????? ??? ?????### @ "R" # ##?? ???"??? | | ??????????????????##??# " " + T + ????? ???? | | ???????????????#??????# gg # ##?#??#?????? | | ?????????????#????????# !!]= # #??????#????? | | ???????????????#??????#! !]] #######?????#??#??? | | ??????????????????????# !]] #????#?#?? ???????? | | ????????????#?#????#?## Y #????#????????????? | | ??????????????#???????####### ##??##?#???????????? | | ???????????##???????????????###?#??#?????????????? | | ??????????????????????????????#???#??????????????? | | ??????????????????????????#?#??????#?????????????? | | ????????????????#???????##???????#???????????????? | | ???????????#??????#??????????????????????????????? | | ???????????????#???????????#?????#???#???????????? | | ??????????????#????##????##????#?????????????????? | | ??????????????????????????????#?#????????????????? | | ?????????????????????????????????????????????????? | | ?????????????????????#???????????????????????????? | | ?????????????????????????????????????????????????? | | ?????????????????????????????????????????????????? | | ?????????????????????????????????????????????????? | | | | | | | | | +----------------------------------------------------+ Best States ------------- Heat Dissipation 28 Energy Generation 14 Energy Capacity 250 Matter Stores 300 Matter Capacity 300 Sight Range 16 Terrain Scan Range 16 Terrain Scan Density 85 ECM Strength 1 Evasion (%) 55 Item Schematics ----------------- None Robot Schematics ------------------ None Fabricated ------------ Nothing Repaired ---------- Nothing Studied --------- None Alien Tech Used ----------------- None Achievements -------------- None Challenges ------------ None Game ------ Seed TractorArcsightLaser Manual? 0 Play Time 00:07:45 Cumulative 13.0 hours Start 2026.08.06 @ 15:15:06 End 2026.08.06 @ 15:22:29 Sessions 1 Manual Loads 0 Difficulty Rogue Special Mode None Game No. 45 Rogue 45 Adventurer 0 Explorer 0 Win Type - Total 0 Types 0/0/0/0/0/0/0/0/0/0 Lore% 14 Gallery% 20 Achievement% 15 Wizard Run 0 Options --------- Layout 1 ASCII 0 Keyboard 0 Movement Mouse Keybinds 0 Fullscreen 1 Font 24/Smallcaps Map View 50x35 Zoom Use 0% Tactical HUD 0 Map Filters NONE Filters NONE Steam 1 RUN: 4f1f131e-a1c5-4731-b2c0-0c3b1efc1c6d